bitfinex-derivatives/quotes_SOLF0:USTF0_20250312
["timestamp","ask_amount","ask_price","bid_price","bid_amount"]
[1741786513841,0.05308837,128.48,128.45,0.05206867]
[1741786514042,4.08638837,128.48,128.45,0.05206867]
[1741786514240,0.05308837,128.48,128.45,0.05206867]
[1741786516443,0.05308837,128.48,128.47,7.7853]
[1741786516647,0.05308837,128.48,128.45,0.05206867]
[1741786517447,0.05308837,128.48,128.46,7.7855]
[1741786517741,0.05308837,128.48,128.45,0.05206867]
[1741786517943,4.138,128.54,128.47,51.46561574]
[1741786518149,52.6999,128.59,128.48,44.32]
[1741786518352,12.5179,128.59,128.51,51.46561574]
[1741786518646,12.5179,128.59,128.48,44.32]
[1741786518848,51.46561574,128.57,128.48,44.32]
[1741786519043,95.76561574,128.57,128.46,51.46561574]
[1741786519344,0.05816099,128.54,128.51,1.702e-05]
[1741786519649,7.7822,128.52,128.51,1.702e-05]
[1741786519838,0.05816099,128.54,128.51,1.702e-05]
[1741786520442,44.26,128.53,128.51,1.702e-05]
[1741786520642,4.1449,128.52,128.51,1.702e-05]
[1741786521042,44.26,128.53,128.51,1.702e-05]
[1741786521254,7.7822,128.52,128.51,1.702e-05]
[1741786521451,0.05816099,128.54,128.51,1.702e-05]
[1741786521651,7.7822,128.52,128.51,1.702e-05]
[1741786522344,52.0422,128.52,128.51,1.702e-05]
[1741786523054,56.3572,128.52,128.51,1.702e-05]
[1741786523241,0.05816099,128.54,128.51,1.702e-05]
[1741786523647,7.7822,128.53,128.51,1.702e-05]
[1741786523852,0.05816099,128.54,128.51,1.702e-05]
[1741786525247,7.7822,128.52,128.51,1.702e-05]
[1741786526656,51.8222,128.52,128.51,1.702e-05]
[1741786527459,105.62781574,128.52,128.51,1.702e-05]
[1741786528651,105.62781574,128.52,128.4,233.5]
[1741786528652,51.46561574,128.49,128.4,233.5]
[1741786528851,51.46561574,128.47,128.39,31.55054756]
[1741786529046,43.96,128.46,128.39,31.55054756]
[1741786529551,51.46561574,128.42,128.39,25.03914756]
[1741786529756,7.7901,128.39,128.38,13.83380559]
[1741786529960,8.1684,128.41,128.39,4.96e-06]
[1741786530156,8.1684,128.41,128.32,212.46856221]
[1741786530157,8.1684,128.41,128.32,168.58856221]
[1741786530858,8.1684,128.41,128.32,220.05417795]
[1741786531151,8.1684,128.41,128.35,51.46561574]
[1741786531355,43.8,128.45,128.39,7.79]
[1741786531356,7.7872,128.44,128.39,7.79]
[1741786531658,43.8,128.45,128.37,51.46561574]
[1741786531859,7.7875,128.44,128.38,7.7903]
[1741786532151,7.7875,128.44,128.35,95.26561574]
[1741786532152,8.1017,128.48,128.37,51.46561574]
[1741786532353,43.92,128.47,128.36,277.46]
[1741786532557,43.92,128.47,128.36,281.6549]
[1741786532558,54.38857981,128.47,128.36,281.6549]
[1741786532761,0.05718098,128.44,128.41,0.05738695]
[1741786533656,0.05718098,128.44,128.43,7.7877]
[1741786533857,149.31071588,128.49,128.41,53.86300269]
[1741786534047,125.62295782,128.49,128.48,7.7847]
[1741786534247,207.1450332,128.5,128.45,95.36561574]
[1741786534759,207.1450332,128.5,128.49,7.7841]
[1741786534954,121.28592658,128.5,128.49,7.7841]
[1741786535156,112.96782658,128.5,128.49,51.6041]
[1741786535353,234.63387504,128.51,128.5,7.7835]
[1741786535659,127.84720986,128.54,128.5,102.93123148]
[1741786535860,41.30190372,128.54,128.53,51.46561574]
[1741786536152,47.8257,128.67,128.53,328.82561574]
[1741786536153,42.63446854,128.61,128.53,328.82561574]
[1741786536358,42.63446854,128.61,128.58,51.46561574]
[1741786536553,42.63446854,128.61,128.58,7.7785]
[1741786536754,47.34620784,128.61,128.58,0.05388234]
[1741786537154,51.46561574,128.59,128.53,277.36]
[1741786537651,56.12561574,128.59,128.53,277.36]
[1741786537955,51.46561574,128.57,128.47,277.42]
[1741786538156,51.46561574,128.55,128.47,43.86]
[1741786538353,43.82,128.56,128.47,43.86]
[1741786538553,0.05265681,128.53,128.51,0.05762406]
[1741786538961,4.71265681,128.53,128.51,0.05762406]
[1741786539455,0.05265681,128.53,128.51,0.05762406]
[1741786540059,4.71265681,128.53,128.51,0.05762406]
[1741786540255,7.7822,128.52,128.51,0.05762406]
[1741786540663,4.66,128.52,128.51,0.05762406]
[1741786540862,0.05265681,128.53,128.51,0.05762406]
[1741786541159,4.71265681,128.53,128.51,0.05762406]
[1741786541458,56.17827255,128.53,128.44,277.36]
[1741786541657,56.12561574,128.53,128.44,277.36]
[1741786541959,7.7826,128.52,128.45,7.7859]
[1741786542161,56.12561574,128.53,128.44,277.36]
[1741786542454,4.66,128.53,128.44,328.82561574]
[1741786542649,4.66,128.53,128.47,0.04969319]
[1741786542650,0.05287237,128.5,128.47,0.04969319]
[1741786543056,4.71287237,128.5,128.47,0.04969319]
[1741786543756,7.7847,128.48,128.47,0.04969319]
[1741786544157,12.4447,128.48,128.47,0.04969319]
[1741786544356,4.66,128.48,128.44,233.56]
[1741786545260,4.66,128.48,128.41,43.62]
[1741786545464,7.7859,128.46,128.41,43.62]
[1741786545654,0.05113677,128.46,128.43,0.05795423]
[1741786545951,7.7869,128.45,128.43,0.05795423]
[1741786546151,4.71897899,128.46,128.43,0.05795423]
[1741786546556,7.7871,128.44,128.43,0.05795423]
[1741786546751,51.46561574,128.45,128.38,233.5]
[1741786546963,51.46561574,128.45,128.35,7.7921]
[1741786547163,51.7339,128.44,128.35,7.7921]
[1741786547368,51.46561574,128.42,128.34,43.54]
[1741786547658,7.7905,128.39,128.33,43.52]
[1741786547862,56.12561574,128.42,128.35,7.7922]
[1741786548164,0.05279246,128.37,128.35,0.02919701]
[1741786548464,0.05148537,128.37,128.35,7.82129701]
[1741786548763,0.05148537,128.37,128.35,0.02919701]
[1741786549558,7.84278537,128.37,128.35,0.02919701]
[1741786549755,4.71148537,128.37,128.35,0.02919701]
[1741786550456,56.17710111,128.37,128.26,285.04561574]
[1741786550656,7.7946,128.32,128.28,7.7966]
[1741786550964,51.46561574,128.34,128.26,233.58]
[1741786551263,4.2339,128.33,128.24,85.79962168]
[1741786551464,4.2339,128.33,128.24,129.29962168]
[1741786551657,0.0506762,128.3,128.26,7.7978]
[1741786551863,0.0506762,128.3,128.24,129.29962168]
[1741786552060,4.7106762,128.3,128.24,129.29962168]
[1741786552257,0.0506762,128.3,128.24,129.29962168]
[1741786552463,0.0506762,128.3,128.24,180.76523742]
[1741786552663,0.0506762,128.3,128.27,51.46561574]
[1741786552962,0.0506762,128.3,128.29,7.7962]
[1741786553364,0.0506762,128.3,128.28,43.38]
[1741786553760,7.7962,128.29,128.22,233.58]
[1741786553961,7.7962,128.29,128.25,7.7985]
[1741786554162,94.78561574,128.34,128.22,233.58]
[1741786554362,7.84721629,128.28,128.22,233.58]
[1741786554567,0.05041629,128.28,128.22,233.58]
[1741786555065,0.05041629,128.28,128.25,7.7981]
[1741786555367,4.71041629,128.28,128.22,233.58]
[1741786556867,0.05041629,128.28,128.22,233.58]
[1741786557168,4.71041629,128.28,128.22,241.3802]
[1741786557360,4.71041629,128.28,128.22,233.58]
[1741786557762,4.71041629,128.28,128.22,241.3802]
[1741786557964,4.71041629,128.28,128.22,233.58]
[1741786558363,7.7984,128.26,128.22,241.38]
[1741786558564,7.7984,128.26,128.22,233.58]
[1741786558859,0.05299148,128.25,128.22,233.58]
[1741786559669,7.7997,128.24,128.22,233.58]
[1741786560066,0.05299148,128.25,128.22,233.58]
[1741786560267,12.51209148,128.25,128.22,233.58]
[1741786560567,4.71299148,128.25,128.22,233.58]
[1741786560763,42.98,128.24,128.15,233.8]
[1741786561070,51.46561574,128.22,128.15,233.8]
[1741786561269,0.05653342,128.21,128.15,241.6047]
[1741786561465,0.05653342,128.21,128.15,233.8]
[1741786561466,42.94,128.2,128.15,233.8]
[1741786561661,51.46561574,128.19,128.12,85.79962168]
[1741786561862,59.54231574,128.19,128.12,85.79962168]
[1741786562066,0.05998357,128.17,128.11,31.88447739]
[1741786562273,42.98,128.16,128.11,31.88447739]
[1741786562668,47.64,128.16,128.11,31.88447739]
[1741786563177,4.66,128.16,128.11,31.88447739]
[1741786563872,4.66,128.16,128.12,7.8064]
[1741786564068,4.66,128.16,128.11,31.88447739]
[1741786564267,0.05998357,128.17,128.11,74.96447739]
[1741786564670,4.71998357,128.17,128.11,31.88447739]
[1741786564870,4.71998357,128.17,128.09,362.87021287]
[1741786565169,4.71998357,128.17,128.03,51.46561574]
[1741786565170,51.46561574,128.16,128.03,51.46561574]
[1741786565373,51.46561574,128.13,128.01,328.52561574]
[1741786565572,8.1308,128.12,128.04,7.811]
[1741786565776,51.46561574,128.06,128.0,31.88447739]
[1741786565971,94.76561574,128.06,128.0,31.88447739]
[1741786566173,99.42561574,128.06,128.0,31.88447739]
[1741786566370,0.05391407,128.04,128.0,31.88447739]
[1741786566573,0.05391407,128.04,128.03,7.812]
[1741786566875,0.05391407,128.04,127.98,43.28]
[1741786567180,0.05391407,128.04,128.03,7.812]
[1741786567378,0.05391407,128.04,127.98,43.28]
[1741786567979,0.05391407,128.04,128.0,51.46561574]
[1741786568282,0.05391407,128.04,128.03,7.812]
[1741786569173,55.78181574,128.11,128.02,43.28]
[1741786569376,60.44181574,128.11,128.02,43.33391407]
[1741786569676,60.44181574,128.11,128.02,43.28]
[1741786570273,60.44181574,128.11,128.03,7.8116]
[1741786570478,0.05521778,128.08,128.05,0.05044622]
[1741786570881,4.71521778,128.08,128.05,0.05044622]
[1741786571284,51.46561574,128.06,127.97,0.28478]
[1741786571484,51.46561574,128.03,127.97,0.28478]
[1741786571685,43.2,128.04,127.97,0.28478]
[1741786572178,47.86,128.04,127.97,0.28478]
[1741786572581,0.05652638,128.02,127.97,0.28478]
[1741786573075,4.71652638,128.02,127.97,0.28478]
[1741786573277,0.05652638,128.02,127.97,94.87039574]
[1741786573584,4.031,128.09,127.97,94.87039574]
[1741786573772,4.66,128.1,128.0,51.46561574]
[1741786573981,4.66,128.1,128.03,51.46561574]
[1741786574275,4.66,128.1,128.04,43.1]
[1741786574684,7.8121,128.03,127.99,7.8143]
[1741786574874,4.66,128.03,127.97,0.28478]
[1741786575080,4.66,128.03,128.0,0.0581943]
[1741786575281,7.87262223,128.01,128.0,0.0581943]
[1741786575480,0.05942223,128.01,127.97,0.28478]
[1741786575680,4.71942223,128.01,127.97,0.28478]
[1741786576383,4.71942223,128.01,127.98,7.815]
[1741786576585,4.71942223,128.01,127.97,0.28478]
[1741786577482,0.05942223,128.01,127.97,43.48478]
[1741786577681,4.71942223,128.01,127.97,43.48478]
[1741786578180,4.71942223,128.01,127.97,0.28478]
[1741786578384,51.46561574,128.0,127.97,0.28478]
[1741786578588,51.46561574,128.0,127.91,75.04447739]
[1741786578786,51.46561574,127.98,127.91,31.88447739]
[1741786578986,7.8171,127.95,127.91,31.88447739]
[1741786579180,51.51872304,127.96,127.91,31.88447739]
[1741786579382,60.35972304,127.96,127.91,31.88447739]
[1741786580086,8.8941073,127.96,127.93,7.818]
[1741786580288,8.8941073,127.96,127.91,31.88447739]
[1741786580482,8.8941073,127.96,127.91,39.70327739]
[1741786580687,8.8941073,127.96,127.91,31.88447739]
[1741786580882,8.8941073,127.96,127.87,43.12]
[1741786581082,8.841,127.96,127.87,43.12]
[1741786581285,0.05181954,127.93,127.87,43.12]
[1741786581584,51.51743528,127.93,127.82,75.12447739]
[1741786581788,56.12561574,127.93,127.82,75.12447739]
[1741786582287,0.05775473,127.89,127.82,75.12447739]
[1741786582589,7.8219,127.87,127.82,39.70917739]
[1741786582785,4.66,127.87,127.82,31.88447739]
[1741786582990,51.46561574,127.93,127.82,31.88447739]
[1741786583186,0.05682495,127.86,127.83,277.46]
[1741786583386,51.46561574,127.91,127.83,277.46]
[1741786583587,0.05729178,127.86,127.83,277.46]
[1741786583788,4.71729178,127.86,127.83,234.26]
[1741786584086,0.05729178,127.86,127.85,7.823]
[1741786584284,0.05729178,127.86,127.83,234.26]
[1741786584484,4.71729178,127.86,127.83,234.26]
[1741786584786,12.54009178,127.86,127.83,234.26]
[1741786584987,4.71729178,127.86,127.83,234.26]
[1741786585190,12.54009178,127.86,127.83,234.26]
[1741786585392,4.71729178,127.86,127.83,234.26]
[1741786585784,4.71729178,127.86,127.83,7.824]
[1741786585984,56.18290752,127.86,127.77,234.42]
[1741786586291,51.46561574,127.91,127.78,51.46561574]
[1741786586488,51.46561574,127.88,127.79,43.38]
[1741786586692,0.05366885,127.83,127.79,43.38]
[1741786586892,51.46561574,127.89,127.79,43.38]
[1741786587290,7.8213,127.88,127.84,7.8234]
[1741786587794,4.66,127.88,127.85,7.8226]
[1741786587995,4.66,127.88,127.83,43.44]
[1741786588694,0.0590257,127.87,127.84,0.05009758]
[1741786589089,51.46561574,127.95,127.84,0.05009758]
[1741786589291,12.5701,127.94,127.83,49.2579]
[1741786589585,20.388,127.94,127.83,49.2579]
[1741786589792,12.5701,127.94,127.83,49.2579]
[1741786590095,12.5701,127.94,127.85,51.46561574]
[1741786590392,4.1466,127.97,127.85,51.46561574]
[1741786590393,4.1466,127.97,127.88,51.46561574]
[1741786590593,12.4761,127.97,127.89,43.34]
[1741786590789,4.66,127.97,127.89,43.34]
[1741786592293,4.66,127.97,127.94,7.8172]
[1741786592484,4.66,127.97,127.89,43.34]
[1741786592689,7.8168,127.96,127.91,7.8191]
[1741786592892,51.46561574,127.96,127.94,0.05120392]
[1741786593190,4.66,127.96,127.92,7.8183]
[1741786593386,4.66,127.96,127.88,51.46561574]
[1741786593593,4.66,127.96,127.92,51.46561574]
[1741786593795,7.8151,127.98,127.94,7.8174]
[1741786593998,7.8151,127.98,127.93,43.3]
[1741786594294,7.8163,127.96,127.95,0.04931115]
[1741786594786,7.8201,127.9,127.86,7.8222]
[1741786594995,51.46561574,127.94,127.85,266.42447739]
[1741786595298,4.1445,127.95,127.87,51.46561574]
[1741786595496,8.8045,127.95,127.91,7.8189]
[1741786595693,4.66,127.95,127.91,43.3]
[1741786595889,4.1445,128.01,127.92,0.05077659]
[1741786596090,8.5895,128.02,127.95,51.46561574]
[1741786596296,4.66,128.02,127.95,94.80561574]
[1741786596590,4.66,128.02,127.95,43.34]
[1741786596791,51.46561574,128.0,127.87,317.87009313]
[1741786596991,51.46561574,127.98,127.88,43.38]
[1741786597198,0.04938872,127.95,127.92,0.0556954]
[1741786597397,7.818,127.94,127.92,0.0556954]
[1741786597889,7.8201,127.9,127.87,266.40447739]
[1741786598090,4.66,127.9,127.87,266.40447739]
[1741786598486,43.3,127.97,127.92,31.88447739]
[1741786598892,47.96,127.97,127.92,31.88447739]
[1741786599093,0.05637024,127.96,127.93,0.05416451]
[1741786599491,4.71637024,127.96,127.93,0.05416451]
[1741786601194,7.8175,127.94,127.93,0.05416451]
[1741786601394,4.66,127.94,127.87,277.82]
[1741786601796,4.66,127.94,127.87,329.28561574]
[1741786602001,4.66,127.94,127.87,277.82]
[1741786602595,0.05263242,127.92,127.84,43.24]
[1741786602792,7.8222,127.87,127.81,240.5029]
[1741786602991,0.05547265,127.89,127.83,43.24]
[1741786603191,8.5855,127.92,127.83,43.24]
[1741786603399,7.8226,127.86,127.83,43.24]
[1741786603604,7.8226,127.86,127.82,7.8245]
[1741786603901,4.66,127.86,127.81,234.52]
[1741786604601,61.98646555,127.98,127.83,51.46561574]
[1741786604796,7.8183,127.93,127.86,7.8218]
[1741786605005,51.46561574,127.95,127.84,45.5979]
[1741786605204,56.12561574,127.95,127.84,45.5979]
[1741786605598,4.66,127.95,127.84,45.5979]
[1741786605905,0.04966626,127.91,127.88,0.05616739]
[1741786606109,0.04966626,127.91,127.88,43.73616739]
[1741786606504,0.04966626,127.91,127.9,7.82]
[1741786606702,0.04966626,127.91,127.88,43.73616739]
[1741786607301,4.70966626,127.91,127.88,43.73616739]
[1741786607701,0.04966626,127.91,127.89,7.8202]
[1741786608001,0.04966626,127.91,127.88,43.73616739]
[1741786609110,0.04966626,127.91,127.89,7.8202]
[1741786609309,0.04966626,127.91,127.88,43.73616739]
[1741786609812,42.08339924,127.98,127.9,51.46561574]
[1741786610004,46.74339924,127.98,127.89,234.56]
[1741786610205,4.66,127.98,127.89,234.56]
[1741786610507,56.12561574,127.98,127.89,234.56]
[1741786610699,7.8182,127.93,127.89,242.3806]
[1741786610910,51.52370061,127.95,127.92,0.05391936]
[1741786611205,4.3056,127.94,127.87,43.44]
[1741786611611,4.66,127.94,127.87,43.44]
[1741786611915,7.8155,127.98,127.92,7.8183]
[1741786612109,4.66,127.98,127.91,43.38]
[1741786612314,0.05769118,127.96,127.94,0.05005916]
[1741786612716,4.71769118,127.96,127.94,0.05005916]
[1741786613214,0.05769118,127.96,127.94,0.05005916]
[1741786613714,0.05769118,127.96,127.95,7.8169]
[1741786615312,42.08339924,128.02,127.95,94.58561574]
[1741786615611,46.74339924,128.02,127.95,43.12]
[1741786615914,47.78,128.02,127.92,94.58561574]
[1741786616111,47.78,128.02,127.91,277.66]
[1741786616311,47.78,128.02,127.92,51.46561574]
[1741786616615,47.78,128.02,127.95,0.05565188]
[1741786616616,7.8163,127.96,127.95,0.05565188]
[1741786616814,51.51876461,127.98,127.88,43.32]
[1741786617010,4.1856,127.97,127.88,43.32]
[1741786617506,8.8456,127.97,127.87,43.3]
[1741786617712,8.8456,127.97,127.85,234.52]
[1741786617915,0.05403089,127.93,127.91,0.05719172]
[1741786618311,4.71403089,127.93,127.91,0.05719172]
[1741786618512,0.05403089,127.93,127.91,0.05719172]
[1741786619520,0.05403089,127.93,127.91,43.29719172]
[1741786620118,0.05403089,127.93,127.92,7.8187]
[1741786620319,47.2353,128.02,127.91,43.29719172]
[1741786620520,51.8953,128.02,127.92,51.46561574]
[1741786620820,7.8148,127.99,127.92,51.46561574]
[1741786621217,4.66,127.99,127.92,51.46561574]
[1741786621413,0.05276304,127.97,127.94,0.05052592]
[1741786621618,0.05276304,127.97,127.95,43.08]
[1741786622011,4.71276304,127.97,127.94,0.05052592]
[1741786622416,0.05276304,127.97,127.94,0.05052592]
[1741786622621,10.52084981,128.04,127.95,285.96561574]
[1741786622822,15.18084981,128.04,127.98,7.8148]
[1741786623021,15.18084981,128.04,127.96,43.14]
[1741786623218,10.52084981,128.08,127.98,51.46561574]
[1741786623418,15.18084981,128.08,128.01,51.46561574]
[1741786623626,15.18084981,128.08,128.02,43.2]
[1741786623813,10.23313904,128.08,128.07,51.46561574]
[1741786624019,10.23313904,128.08,128.07,43.2]
[1741786624215,10.23313904,128.08,128.04,43.2]
[1741786624424,10.23313904,128.08,128.03,234.5]
[1741786624625,10.23313904,128.08,128.05,51.46561574]
[1741786624824,14.89313904,128.08,128.04,43.32]
[1741786625019,14.94502692,128.08,128.05,0.0505982]
[1741786625219,10.28502692,128.08,128.05,0.0505982]
[1741786625421,10.28502692,128.08,128.06,43.38]
[1741786625618,0.05188788,128.08,128.06,43.38]
[1741786625818,4.0884,128.16,128.07,51.46561574]
[1741786626014,8.7484,128.16,128.07,55.40041574]
[1741786626224,8.7484,128.16,128.07,3.9348]
[1741786626426,51.46561574,128.14,128.04,94.96561574]
[1741786626625,7.8104,128.06,128.03,234.5]
[1741786626830,51.46561574,128.11,128.03,234.5]
[1741786627129,0.05346359,128.06,128.03,234.55123209]
[1741786627328,0.05346359,128.06,128.01,43.52]
[1741786627523,4.71346359,128.06,128.03,0.05181336]
[1741786627720,4.66,128.06,127.97,234.44]
[1741786627924,59.57151574,128.05,127.97,234.44]
[1741786628227,7.8115,128.04,127.98,51.46561574]
[1741786628430,4.66,128.06,127.98,51.46561574]
[1741786628923,0.05147885,128.03,128.01,0.05218924]
[1741786629331,4.71147885,128.03,128.01,0.05218924]
[1741786629726,4.71147885,128.03,127.97,234.44]
[1741786629922,48.27147885,128.03,127.94,43.56]
[1741786630124,51.46561574,128.01,127.91,277.96]
[1741786630330,51.46561574,127.98,127.87,3.9339]
[1741786630530,47.6623,127.97,127.87,3.9339]
[1741786631030,0.05350229,127.93,127.91,0.05860911]
[1741786631529,4.71350229,127.93,127.91,0.05860911]
[1741786631725,0.05350229,127.93,127.91,0.05860911]
[1741786632526,4.71350229,127.93,127.91,0.05860911]
[1741786632928,7.8187,127.92,127.91,0.05860911]
[1741786633229,4.71350229,127.93,127.91,0.05860911]
[1741786634124,0.05350229,127.93,127.91,0.05860911]
[1741786635833,4.71350229,127.93,127.91,0.05860911]
[1741786636031,7.8187,127.92,127.91,0.05860911]
[1741786636233,4.71350229,127.93,127.85,234.4]
[1741786636527,4.0581,127.92,127.85,234.4]
[1741786636933,60.18371574,127.92,127.85,234.4]
[1741786637230,51.46561574,127.89,127.79,234.46]
[1741786637436,43.32,127.88,127.79,234.46]
[1741786637631,7.8236,127.85,127.79,242.2865]
[1741786637828,47.98,127.88,127.79,234.46]
[1741786638534,0.05065321,127.85,127.82,51.5212192]
[1741786638736,7.8231,127.85,127.8,51.146]
[1741786638937,4.71751345,127.85,127.82,0.05913689]
[1741786639435,7.824,127.84,127.82,0.05913689]
[1741786639736,4.71751345,127.85,127.82,0.05913689]
[1741786639937,7.824,127.84,127.82,0.05913689]
[1741786640137,48.01751345,127.85,127.82,0.05913689]
[1741786640435,99.48312919,127.85,127.77,7.8277]
[1741786640636,8.0711,127.84,127.74,94.76561574]
[1741786640833,7.8244,127.83,127.78,7.827]
[1741786641230,4.66,127.83,127.74,94.76561574]
[1741786641436,7.8266,127.8,127.75,7.8287]
[1741786641636,7.88601264,127.8,127.75,7.8287]
[1741786641840,12.54601264,127.8,127.75,7.8287]
[1741786642039,4.71941264,127.8,127.76,7.8285]
[1741786642234,4.71941264,127.8,127.73,234.56]
[1741786642541,0.05941264,127.8,127.74,51.46561574]
[1741786642737,0.05941264,127.8,127.75,43.1]
[1741786643440,0.05941264,127.8,127.77,51.46561574]
[1741786644333,0.05941264,127.8,127.75,43.1]
[1741786644734,0.05941264,127.8,127.74,51.46561574]
[1741786644936,0.05941264,127.8,127.75,43.02]
[1741786645131,0.05941264,127.8,127.79,7.8267]
[1741786645536,0.05941264,127.8,127.7,5.8089]
[1741786645537,4.71941264,127.8,127.7,5.8089]
[1741786645741,56.12561574,127.8,127.7,48.9689]
[1741786645938,0.06011371,127.76,127.69,82.28287352]
[1741786646137,0.06011371,127.76,127.69,7.8325]
[1741786646337,4.72011371,127.76,127.65,43.12]
[1741786646538,51.46561574,127.74,127.65,43.12]
[1741786646836,51.46561574,127.74,127.56,244.46561574]
[1741786646837,51.46561574,127.68,127.58,45.72]
[1741786647043,0.05297906,127.71,127.61,51.46561574]
[1741786647241,4.66,127.71,127.61,51.46561574]
[1741786647441,51.46561574,127.64,127.55,85.79962168]
[1741786647935,47.3,127.66,127.55,85.79962168]
[1741786648134,0.05758543,127.61,127.55,85.79962168]
[1741786648331,51.52320117,127.61,127.55,85.79962168]
[1741786648542,0.05758543,127.61,127.55,85.79962168]
[1741786648737,0.05758543,127.61,127.55,93.64072168]
[1741786648941,0.05758543,127.61,127.55,85.79962168]
[1741786649446,59.30471574,127.59,127.55,85.79962168]
[1741786649742,51.46561574,127.56,127.53,112.48981265]
[1741786650039,152.43074153,127.56,127.4,3.945]
[1741786650239,51.46561574,127.48,127.4,3.945]
[1741786650732,0.05205885,127.45,127.38,83.56384986]
[1741786651136,0.05205885,127.45,127.38,133.88384986]
[1741786651334,0.05205885,127.45,127.38,83.56384986]
[1741786651537,0.05205885,127.45,127.38,134.30384986]
[1741786651734,51.46561574,127.53,127.4,51.46561574]
[1741786651943,50.58,127.54,127.41,1.8839]
[1741786652137,51.46561574,127.56,127.43,51.46561574]
[1741786652338,84.1667985,127.45,127.44,51.24]
[1741786652534,77.6214985,127.45,127.44,51.24]
[1741786652739,64.5302985,127.45,127.44,51.24]
[1741786652943,54.64651847,127.46,127.44,337.70561574]
[1741786653138,22.01281847,127.46,127.45,7.8476]
[1741786653336,4.3101,127.61,127.44,389.17123148]
[1741786653540,4.3101,127.61,127.55,51.46561574]
[1741786653941,4.3101,127.61,127.52,51.54]
[1741786654235,4.3101,127.61,127.55,51.46561574]
[1741786654444,30.61570632,127.58,127.55,51.46561574]
[1741786654740,30.61570632,127.58,127.57,0.05064382]
[1741786655446,30.61570632,127.58,127.57,52.45064382]
[1741786656342,30.61570632,127.58,127.57,60.29084382]
[1741786656543,30.61570632,127.58,127.57,52.45064382]
[1741786657247,30.61570632,127.58,127.57,0.05064382]
[1741786657745,0.0560035,127.59,127.57,0.05064382]
[1741786658446,4.7160035,127.59,127.57,0.05064382]
[1741786659142,0.0560035,127.59,127.57,0.05064382]
[1741786659547,0.0560035,127.59,127.58,7.8396]
[1741786659743,4.7160035,127.59,127.57,0.05064382]
[1741786661243,0.0560035,127.59,127.58,7.8396]
[1741786661638,4.7160035,127.59,127.57,0.05064382]
[1741786662147,4.2894,127.67,127.57,0.05064382]
[1741786662345,51.46561574,127.65,127.57,0.05064382]
[1741786662546,51.46561574,127.65,127.54,105.58561574]
[1741786662847,51.46561574,127.65,127.54,54.12]
[1741786663048,51.46561574,127.63,127.54,54.12]
[1741786663439,0.05755012,127.6,127.57,0.05605474]
[1741786664443,0.05755012,127.6,127.57,7.89585474]
[1741786664644,0.05755012,127.6,127.57,0.05605474]
[1741786664845,51.46561574,127.65,127.57,0.05605474]
[1741786665149,51.46561574,127.65,127.54,105.58561574]
[1741786665150,51.46561574,127.65,127.54,54.12]
[1741786665845,58.2494,127.67,127.54,64.56703035]
[1741786666040,0.05486856,127.61,127.59,7.8385]
[1741786666245,58.2494,127.67,127.58,51.52045634]
[1741786666246,58.2494,127.67,127.58,51.46561574]
[1741786666545,58.2494,127.67,127.59,0.05738067]
[1741786666945,58.2494,127.67,127.55,51.46561574]
[1741786667146,58.2494,127.67,127.56,10.44703035]
[1741786667147,51.46561574,127.6,127.56,10.44703035]
[1741786667345,4.0634,127.59,127.55,9.09932141]
[1741786667745,0.05691094,127.58,127.56,0.05116713]
[1741786668148,0.05691094,127.58,127.57,7.8402]
[1741786668351,0.05691094,127.58,127.56,51.51678287]
[1741786668548,51.46561574,127.68,127.56,51.51678287]
[1741786668854,51.46561574,127.63,127.55,9.09932141]
[1741786669049,51.46561574,127.63,127.54,4.3516]
[1741786669247,51.46561574,127.63,127.53,53.86]
[1741786669443,51.46561574,127.6,127.46,235.14]
[1741786669746,51.46561574,127.54,127.45,157.54566136]
[1741786670046,51.46561574,127.54,127.45,151.76551852]
[1741786670352,0.05593693,127.52,127.45,151.76551852]
[1741786670944,51.46561574,127.51,127.45,151.76551852]
[1741786671351,51.46561574,127.51,127.44,7.8478]
[1741786671352,7.8451,127.49,127.44,7.8478]
[1741786671551,51.46561574,127.51,127.41,4.2109]
[1741786671945,175.46561574,127.51,127.41,4.2109]